fUSD/lending_fUSD_20240708
["ID","MTS","AMOUNT","RATE_DAILY","PERIOD"]
[331466928,1720427847044,-1122.87,0.00034099,48]
[331466929,1720427847102,-579.46,0.00034099,46]
[331466930,1720427847154,-732.41,0.00034099,42]
[331466931,1720427847210,-759.35,0.00034099,44]
[331466932,1720427847261,-722.73,0.00034099,50]
[331466933,1720427847319,-1122.87,0.00034099,49]
[331466934,1720427847376,-579.46,0.00034099,47]
[331466935,1720427847435,-500.0,0.00034099,41]
[331466936,1720427847496,-732.41,0.00034099,43]
[331466937,1720427847556,-759.35,0.00034099,45]
[331466938,1720427847620,-1122.87,0.00034099,50]
[331466939,1720427847677,-584.22,0.00034099,30]
[331466940,1720427847733,-500.0,0.00034099,42]
[331466941,1720427847787,-732.41,0.00034099,44]
[331466942,1720427847843,-759.35,0.00034099,46]
[331466943,1720427847901,-722.73,0.00034099,51]
[331466944,1720427847960,-732.41,0.00034099,45]
[331466945,1720427848014,-584.22,0.00034099,31]
[331466946,1720427848067,-500.0,0.00034099,43]
[331466947,1720427848126,-579.46,0.00034099,48]
[331466948,1720427848186,-1122.87,0.00034099,51]
[331466949,1720427848239,-759.35,0.00034099,47]
[331466950,1720427848293,-722.73,0.00034099,52]
[331466951,1720427848347,-500.0,0.00034099,44]
[331466952,1720427848402,-584.22,0.00034099,32]
[331466953,1720427848453,-579.46,0.00034099,49]
[331466954,1720427848504,-759.35,0.00034099,48]
[331466955,1720427848554,-1122.87,0.00034099,52]
[331466956,1720427848604,-209.82847716,0.00034099,45]
[331466957,1720427848660,-732.41,0.00034099,46]
[331466958,1720427848712,-584.22,0.00034099,33]
[331466959,1720427848764,-579.46,0.00034099,50]
[331466960,1720427848816,-759.35,0.00034099,49]
[331466961,1720427848868,-1123.09118055,0.00034099,53]
[331466962,1720427848917,-732.41,0.00034099,47]
[331466963,1720427848969,-579.46,0.00034099,51]
[331466964,1720427849020,-759.35,0.00034099,50]
[331466965,1720427849070,-584.22,0.00034099,34]
[331466966,1720427849125,-722.77994745,0.00034099,53]
[331466967,1720427849179,-732.41,0.00034099,48]
[331466968,1720427849233,-759.35,0.00034099,51]
[331466969,1720427849285,-579.46,0.00034099,52]
[331466970,1720427850114,-584.22,0.00034099,35]
[331466971,1720427850197,-732.41,0.00034099,49]
[331466972,1720427850246,-759.35,0.00034099,52]
[331466973,1720427850295,-579.53,0.00034099,53]
[331466974,1720427850346,-584.22,0.00034099,36]
[331466975,1720427850397,-584.22,0.00034099,37]
[331466976,1720427850444,-732.41,0.00034099,50]
[331466977,1720427850493,-759.41376065,0.00034099,53]
[331466978,1720427850540,-584.22,0.00034099,38]
[331466979,1720427850587,-732.41,0.00034099,51]
[331466980,1720427850631,-584.22,0.00034099,39]
[331466981,1720427850672,-732.41,0.00034099,52]
[331466982,1720427850715,-500.0,0.00034099,30]
[331466983,1720427850758,-584.22,0.00034099,40]
[331466984,1720427850806,-732.48979069,0.00034099,53]
[331466985,1720427850855,-500.0,0.00034099,31]
[331466986,1720427850911,-584.22,0.00034099,41]
[331466987,1720427850962,-500.0,0.00034099,32]
[331466988,1720427851015,-584.22,0.00034099,42]
[331466989,1720427851065,-584.22,0.00034099,43]
[331466990,1720427851117,-500.0,0.00034099,33]
[331466991,1720427851166,-584.22,0.00034099,44]
[331466992,1720427851214,-500.0,0.00034099,30]
[331466993,1720427851261,-500.0,0.00034099,34]
[331466994,1720427851307,-584.22,0.00034099,45]
[331466995,1720427852594,-500.0,0.00034099,35]
[331466996,1720427852655,-584.22,0.00034099,46]
[331466997,1720427852704,-500.0,0.00034099,31]
[331466998,1720427852755,-500.0,0.00034099,30]
[331466999,1720427852802,-500.0,0.00034099,36]
[331467000,1720427852851,-1543.9,0.00034099,30]
[331467001,1720427852905,-584.22,0.00034099,47]
[331467002,1720427852952,-500.0,0.00034099,31]
[331467003,1720427852998,-500.0,0.00034099,37]
[331467004,1720427853044,-584.22,0.00034099,48]
[331467005,1720427853094,-500.0,0.00034099,32]
[331467006,1720427853144,-669.87,0.00034099,30]
[331467007,1720427853195,-962.79,0.00034099,30]
[331467008,1720427853246,-500.0,0.00034099,32]
[331467009,1720427853295,-500.0,0.00034099,38]
[331467010,1720427853342,-584.22,0.00034099,49]
[331467011,1720427853387,-500.0,0.00034099,33]
[331467012,1720427853430,-962.79,0.00034099,31]
[331467013,1720427853473,-669.87,0.00034099,31]
[331467014,1720427853516,-277.07,0.00034099,30]
[331467015,1720427853558,-500.0,0.00034099,33]
[331467016,1720427853600,-1543.9,0.00034099,31]
[331467017,1720427853646,-500.0,0.00034099,39]
[331467018,1720427853689,-584.22,0.00034099,50]
[331467019,1720427853730,-500.0,0.00034099,34]
[331467020,1720427853774,-962.79,0.00034099,32]
[331467021,1720427853817,-669.87,0.00034099,32]
[331467022,1720427853864,-277.07,0.00034099,31]
[331467023,1720427853916,-1543.9,0.00034099,32]
[331467024,1720427853963,-500.0,0.00034099,34]
[331467025,1720427854008,-500.0,0.00034099,40]
[331467026,1720427854053,-584.22,0.00034099,51]
[331467027,1720427854099,-962.79,0.00034099,33]
[331467028,1720427854149,-411.39600815,0.00034099,35]
[331467029,1720427854195,-669.87,0.00034099,33]
[331467030,1720427854242,-277.07,0.00034099,32]
[331467031,1720427854286,-1543.9,0.00034099,33]
[331467032,1720427854330,-500.0,0.00034099,35]
[331467033,1720427854376,-500.0,0.00034099,41]
[331467034,1720427854418,-584.22,0.00034099,52]
[331467035,1720427854462,-5068.74,0.00034099,30]
[331467036,1720427854507,-962.79,0.00034099,34]
[331467037,1720427854549,-669.87,0.00034099,34]
[331467038,1720427854592,-277.07,0.00034099,33]
[331467039,1720427854634,-1543.9,0.00034099,34]
[331467040,1720427854676,-500.0,0.00034099,42]
[331467041,1720427854718,-584.29716497,0.00034099,53]
[331467042,1720427854760,-5068.74,0.00034099,31]
[331467043,1720427854801,-962.79,0.00034099,35]
[331467044,1720427854844,-500.0,0.00034099,36]
[331467045,1720427854886,-669.87,0.00034099,35]
[331467046,1720427854933,-277.07,0.00034099,34]
[331467047,1720427854980,-1543.9,0.00034099,35]
[331467048,1720427855025,-5068.74,0.00034099,32]
[331467049,1720427855068,-962.79,0.00034099,36]
[331467050,1720427855115,-372.23255961,0.00034099,37]
[331467051,1720427855156,-277.07,0.00034099,35]
[331467052,1720427855197,-669.87,0.00034099,36]
[331467053,1720427855240,-1543.9,0.00034099,36]
[331467054,1720427855283,-5068.74,0.00034099,33]
[331467055,1720427855327,-962.79,0.00034099,37]
[331467056,1720427855370,-500.0,0.00034099,43]
[331467057,1720427855410,-277.07,0.00034099,36]
[331467058,1720427855452,-669.87,0.00034099,37]
[331467059,1720427855492,-1543.9,0.00034099,37]
[331467060,1720427855533,-5068.74,0.00034099,34]
[331467061,1720427855574,-962.79,0.00034099,38]
[331467062,1720427855618,-500.0,0.00034099,44]
[331467063,1720427855660,-277.07,0.00034099,37]
[331467064,1720427855700,-669.87,0.00034099,38]
[331467065,1720427855741,-5068.74,0.00034099,35]
[331467066,1720427855782,-962.79,0.00034099,39]
[331467067,1720427855825,-500.0,0.00034099,45]
[331467068,1720427855869,-669.87,0.00034099,39]
[331467069,1720427855918,-277.07,0.00034099,38]
[331467070,1720427856169,-5068.74,0.00034099,36]
[331467071,1720427856220,-192.3233741,0.00034099,46]
[331467072,1720427856271,-962.79,0.00034099,40]
[331467073,1720427856322,-1543.9,0.00034099,38]
[331467074,1720427856375,-277.07,0.00034099,39]
[331467075,1720427856425,-5068.74,0.00034099,37]
[331467076,1720427856476,-669.87,0.00034099,40]
[331467077,1720427856531,-962.79,0.00034099,41]
[331467078,1720427856580,-1543.9,0.00034099,39]
[331467079,1720427856630,-277.07,0.00034099,40]
[331467080,1720427856674,-5068.74,0.00034099,38]
[331467081,1720427856717,-669.87,0.00034099,41]
[331467082,1720427856760,-962.79,0.00034099,42]
[331467083,1720427856805,-1543.9,0.00034099,40]
[331467084,1720427856849,-277.07,0.00034099,41]
[331467085,1720427856900,-669.87,0.00034099,42]
[331467086,1720427856956,-5068.74,0.00034099,39]
[331467087,1720427857002,-1543.9,0.00034099,41]
[331467088,1720427857048,-962.79,0.00034099,43]
[331467089,1720427857093,-277.07,0.00034099,42]
[331467090,1720427857137,-669.87,0.00034099,43]
[331467091,1720427857183,-5068.74,0.00034099,40]
[331467092,1720427857227,-1543.9,0.00034099,42]
[331467093,1720427857273,-962.79,0.00034099,44]
[331467094,1720427857323,-277.07,0.00034099,43]
[331467095,1720427857371,-669.87,0.00034099,44]
[331467096,1720427857419,-1543.9,0.00034099,43]
[331467097,1720427857466,-5068.74,0.00034099,41]
[331467098,1720427857512,-962.79,0.00034099,45]
[331467099,1720427857559,-277.07,0.00034099,44]
[331467100,1720427857606,-669.87,0.00034099,45]
[331467101,1720427857655,-1543.9,0.00034099,44]
[331467102,1720427857702,-5068.74,0.00034099,42]
[331467103,1720427857748,-792.13,0.00034099,30]
[331467104,1720427857792,-962.79,0.00034099,46]
[331467105,1720427857834,-277.07,0.00034099,45]
[331467106,1720427857875,-669.87,0.00034099,46]
[331467107,1720427857920,-277.07,0.00034099,46]
[331467108,1720427857965,-792.13,0.00034099,31]
[331467109,1720427858011,-962.79,0.00034099,47]
[331467110,1720427858058,-5068.74,0.00034099,43]
[331467111,1720427858119,-1543.9,0.00034099,45]
[331467112,1720427858175,-277.07,0.00034099,47]
[331467113,1720427858228,-5068.74,0.00034099,44]
[331467114,1720427858274,-1543.9,0.00034099,46]
[331467115,1720427858321,-962.79,0.00034099,48]
[331467116,1720427858370,-792.13,0.00034099,32]
[331467117,1720427858416,-5068.74,0.00034099,45]
[331467118,1720427858458,-1543.9,0.00034099,47]
[331467119,1720427858500,-962.79,0.00034099,49]
[331467120,1720427858543,-669.87,0.00034099,47]
[331467121,1720427858586,-792.13,0.00034099,33]
[331467122,1720427858630,-5068.74,0.00034099,46]
[331467123,1720427858673,-1543.9,0.00034099,48]
[331467124,1720427858718,-962.79,0.00034099,50]
[331467125,1720427858764,-277.07,0.00034099,48]
[331467126,1720427858808,-669.87,0.00034099,48]
[331467127,1720427858854,-792.13,0.00034099,34]
[331467128,1720427858905,-5068.74,0.00034099,47]
[331467129,1720427858951,-1543.9,0.00034099,49]
[331467130,1720427858996,-962.79,0.00034099,51]
[331467131,1720427859048,-277.07,0.00034099,49]
[331467132,1720427859100,-669.87,0.00034099,49]
[331467133,1720427859153,-5068.74,0.00034099,48]
[331467134,1720427859205,-962.79,0.00034099,52]
[331467135,1720427859254,-1543.9,0.00034099,50]
[331467136,1720427859302,-277.07,0.00034099,50]
[331467137,1720427859350,-669.87,0.00034099,50]
[331467138,1720427859400,-792.13,0.00034099,35]
[331467139,1720427859449,-5068.74,0.00034099,49]
[331467140,1720427859498,-963.01899326,0.00034099,53]
[331467141,1720427859547,-1543.9,0.00034099,51]
[331467142,1720427859594,-277.07,0.00034099,51]
[331467143,1720427859641,-669.87,0.00034099,51]
[331467144,1720427859688,-792.13,0.00034099,36]
[331467145,1720427859734,-5068.74,0.00034099,50]
[331467146,1720427859781,-1543.9,0.00034099,52]
[331467147,1720427859829,-277.07,0.00034099,52]
[331467148,1720427859879,-669.87,0.00034099,52]
[331467149,1720427859931,-792.13,0.00034099,37]
[331467150,1720427859984,-1544.03059548,0.00034099,53]
[331467151,1720427860036,-669.98,0.00034099,53]
[331467152,1720427860086,-792.13,0.00034099,38]
[331467153,1720427860138,-5068.74,0.00034099,51]
[331467154,1720427860187,-277.17469683,0.00034099,53]
[331467155,1720427860236,-792.13,0.00034099,39]
[331467156,1720427860290,-5068.74,0.00034099,52]
[331467157,1720427860339,-792.13,0.00034099,40]
[331467158,1720427860387,-5068.80248569,0.00034099,53]
[331467159,1720427860437,-792.13,0.00034099,41]
[331467160,1720427860486,-792.13,0.00034099,42]
[331467161,1720427860534,-792.13,0.00034099,43]
[331467162,1720427860581,-792.13,0.00034099,44]
[331467163,1720427860630,-792.13,0.00034099,45]
[331467164,1720427860680,-792.13,0.00034099,46]
[331467165,1720427860730,-1641.47,0.00034099,30]
[331467166,1720427860781,-792.13,0.00034099,47]
[331467167,1720427860831,-1641.47,0.00034099,31]
[331467168,1720427860888,-792.13,0.00034099,48]
[331467169,1720427860940,-1641.47,0.00034099,32]
[331467170,1720427860995,-500.0,0.00034099,30]
[331467171,1720427861043,-792.13,0.00034099,49]
[331467172,1720427861090,-500.0,0.00034099,31]
[331467173,1720427861137,-1641.47,0.00034099,33]
[331467174,1720427861185,-792.13,0.00034099,50]
[331467175,1720427861478,-500.0,0.00034099,32]
[331467176,1720427861528,-792.13,0.00034099,51]
[331467177,1720427861575,-500.0,0.00034099,33]
[331467178,1720427861622,-1641.47,0.00034099,34]
[331467179,1720427861667,-792.13,0.00034099,52]
[331467180,1720427861712,-500.0,0.00034099,34]
[331467181,1720427861758,-1641.47,0.00034099,35]
[331467182,1720427861802,-792.18594187,0.00034099,53]
[331467183,1720427861847,-500.0,0.00034099,35]
[331467184,1720427861893,-1641.47,0.00034099,36]
[331467185,1720427861962,-553.47978061,0.00034099,30]
[331467186,1720427862013,-500.0,0.00034099,36]
[331467187,1720427862059,-1641.47,0.00034099,37]
[331467188,1720427862103,-1641.47,0.00034099,38]
[331467189,1720427862148,-401.85197232,0.00034099,37]
[331467190,1720427862194,-1641.47,0.00034099,39]
[331467191,1720427862240,-1641.47,0.00034099,40]
[331467192,1720427862287,-1641.47,0.00034099,41]
[331467193,1720427862334,-500.0,0.00034099,30]
[331467194,1720427862381,-500.0,0.00034099,30]
[331467195,1720427862425,-500.0,0.00034099,31]
[331467196,1720427862471,-1641.47,0.00034099,42]
[331467197,1720427862517,-500.0,0.00034099,32]
[331467198,1720427862563,-500.0,0.00034099,31]
[331467199,1720427862612,-1641.47,0.00034099,43]
[331467200,1720427862659,-500.0,0.00034099,33]
[331467201,1720427862704,-500.0,0.00034099,32]
[331467202,1720427862745,-500.0,0.00034099,30]
[331467203,1720427862787,-1641.47,0.00034099,44]
[331467204,1720427862829,-500.0,0.00034099,34]
[331467205,1720427862871,-502.39659084,0.00034099,33]
[331467206,1720427862916,-500.0,0.00034099,31]
[331467207,1720427862958,-500.0,0.00034099,35]
[331467208,1720427863001,-1641.47,0.00034099,45]
[331467209,1720427863041,-500.0,0.00034099,32]
[331467210,1720427863085,-500.0,0.00034099,36]
[331467211,1720427863133,-500.0,0.00034099,30]
[331467212,1720427863178,-1641.47,0.00034099,46]
[331467213,1720427863223,-500.0,0.00034099,33]
[331467214,1720427863270,-500.0,0.00034099,37]
[331467215,1720427863322,-1641.47,0.00034099,47]
[331467216,1720427863375,-500.0,0.00034099,31]
[331467217,1720427863426,-500.0,0.00034099,34]
[331467218,1720427863475,-500.0,0.00034099,38]
[331467219,1720427863521,-500.0,0.00034099,32]
[331467220,1720427863569,-500.0,0.00034099,35]
[331467221,1720427863616,-1641.47,0.00034099,48]
[331467222,1720427863671,-500.0,0.00034099,39]
[331467223,1720427863717,-500.0,0.00034099,33]
[331467224,1720427863761,-500.0,0.00034099,36]
[331467225,1720427863807,-1641.47,0.00034099,49]
[331467226,1720427863852,-500.0,0.00034099,40]
[331467227,1720427863898,-512.80893514,0.00034099,37]
[331467228,1720427863954,-1641.47,0.00034099,50]
[331467229,1720427864000,-510.34,0.00034099,30]
[331467230,1720427864045,-500.0,0.00034099,41]
[331467231,1720427864090,-1641.47,0.00034099,51]
[331467232,1720427864134,-510.34,0.00034099,31]
[331467233,1720427864179,-500.0,0.00034099,42]
[331467234,1720427864224,-1641.47,0.00034099,52]
[331467235,1720427864270,-510.34,0.00034099,32]
[331467236,1720427864314,-500.0,0.00034099,43]
[331467237,1720427864357,-500.0,0.00034099,34]
[331467238,1720427864403,-500.0,0.00034099,30]
[331467239,1720427864446,-1641.65722845,0.00034099,53]
[331467240,1720427864488,-500.0,0.00034099,44]
[331467241,1720427864531,-500.0,0.00034099,35]
[331467242,1720427864573,-500.0,0.00034099,31]
[331467243,1720427864616,-510.34,0.00034099,33]
[331467244,1720427864663,-500.0,0.00034099,45]
[331467245,1720427864707,-296.97,0.00034099,36]
[331467246,1720427864749,-500.0,0.00034099,32]
[331467247,1720427864792,-500.0,0.00034099,30]
[331467248,1720427864839,-510.34,0.00034099,34]
[331467249,1720427864884,-500.0,0.00034099,46]
[331467250,1720427864929,-500.0,0.00034099,33]
[331467251,1720427864975,-500.0,0.00034099,31]
[331467252,1720427865028,-500.0,0.00034099,34]
[331467253,1720427865076,-171.42602983,0.00034099,47]
[331467254,1720427865126,-500.0,0.00034099,32]
[331467255,1720427865170,-510.34,0.00034099,35]
[331467256,1720427865214,-500.0,0.00034099,35]
[331467257,1720427865258,-500.0,0.00034099,33]
[331467258,1720427865301,-510.34,0.00034099,36]
[331467259,1720427865345,-500.0,0.00034099,36]
[331467260,1720427865391,-510.34,0.00034099,37]
[331467261,1720427865434,-500.0,0.00034099,37]
[331467262,1720427865475,-500.0,0.00034099,34]
[331467263,1720427865516,-500.0,0.00034099,38]
[331467264,1720427865559,-500.0,0.00034099,35]
[331467265,1720427865605,-510.34,0.00034099,38]
[331467266,1720427865650,-500.0,0.00034099,30]
[331467267,1720427865693,-504.15317375,0.00034099,39]
[331467268,1720427865736,-500.0,0.00034099,36]
[331467269,1720427865779,-510.34,0.00034099,39]
[331467270,1720427865823,-500.0,0.00034099,31]
[331467271,1720427865867,-500.0,0.00034099,37]
[331467272,1720427865922,-510.34,0.00034099,40]
[331467273,1720427865967,-500.0,0.00034099,32]
[331467274,1720427866011,-510.34,0.00034099,41]
[331467275,1720427866058,-500.0,0.00034099,38]
[331467276,1720427866103,-500.0,0.00034099,33]
[331467277,1720427866149,-500.0,0.00034099,39]
[331467278,1720427866197,-500.0,0.00034099,34]
[331467279,1720427866474,-500.0,0.00034099,40]
[331467280,1720427866520,-510.34,0.00034099,42]
[331467281,1720427866565,-2861.76,0.00034099,30]
[331467282,1720427866610,-500.0,0.00034099,41]
[331467283,1720427866656,-510.34,0.00034099,43]
[331467284,1720427866700,-500.0,0.00034099,35]
[331467285,1720427866746,-500.0,0.00034099,42]
[331467286,1720427866792,-2861.76,0.00034099,31]
[331467287,1720427866838,-510.34,0.00034099,44]
[331467288,1720427866883,-500.0,0.00034099,36]
[331467289,1720427866927,-2861.76,0.00034099,32]
[331467290,1720427866971,-500.0,0.00034099,37]
[331467291,1720427867021,-2861.76,0.00034099,33]
[331467292,1720427867067,-510.34,0.00034099,45]
[331467293,1720427867113,-771.26,0.00034099,30]
[331467294,1720427867164,-2399.28,0.00034099,30]
[331467295,1720427867209,-2861.76,0.00034099,34]
[331467296,1720427867253,-510.34,0.00034099,46]
[331467297,1720427867296,-771.26,0.00034099,31]
[331467298,1720427867339,-2399.28,0.00034099,31]
[331467299,1720427867384,-500.0,0.00034099,38]
[331467300,1720427867429,-2861.76,0.00034099,35]
[331467301,1720427867476,-510.34,0.00034099,47]
[331467302,1720427867522,-771.26,0.00034099,32]
[331467303,1720427867570,-500.0,0.00034099,39]
[331467304,1720427867616,-2861.76,0.00034099,36]
[331467305,1720427867666,-2399.28,0.00034099,32]
[331467306,1720427867709,-510.34,0.00034099,48]
[331467307,1720427867754,-771.26,0.00034099,33]
[331467308,1720427867798,-500.0,0.00034099,40]
[331467309,1720427867844,-510.34,0.00034099,49]
[331467310,1720427867888,-771.26,0.00034099,34]
[331467311,1720427867934,-2861.76,0.00034099,37]
[331467312,1720427867979,-2399.28,0.00034099,33]
[331467313,1720427868026,-510.34,0.00034099,50]
[331467314,1720427868070,-500.0,0.00034099,41]
[331467315,1720427868120,-2861.76,0.00034099,38]
[331467316,1720427868173,-2399.28,0.00034099,34]
[331467317,1720427868219,-500.0,0.00034099,30]
[331467318,1720427868263,-510.34,0.00034099,51]
[331467319,1720427868307,-771.26,0.00034099,35]
[331467320,1720427868353,-2000.0,0.00034099,30]
[331467321,1720427868397,-2861.76,0.00034099,39]
[331467322,1720427868443,-500.0,0.00034099,42]
[331467323,1720427868486,-2399.28,0.00034099,35]
[331467324,1720427868528,-500.0,0.00034099,31]
[331467325,1720427868571,-510.34,0.00034099,52]
[331467326,1720427868612,-2000.0,0.00034099,30]
[331467327,1720427868657,-771.26,0.00034099,36]
[331467328,1720427868699,-500.0,0.00034099,43]
[331467329,1720427868744,-2861.76,0.00034099,40]
[331467330,1720427868790,-500.0,0.00034099,32]
[331467331,1720427868838,-2399.28,0.00034099,36]
[331467332,1720427868887,-510.52102955,0.00034099,53]
[331467333,1720427868934,-1280.59099005,0.00034099,30]
[331467334,1720427868982,-771.26,0.00034099,37]
[331467335,1720427869030,-500.0,0.00034099,44]
[331467336,1720427869076,-511.5611526,0.00034099,33]
[331467337,1720427869130,-2399.28,0.00034099,37]
[331467338,1720427869179,-2861.76,0.00034099,41]
[331467339,1720427869229,-771.26,0.00034099,38]
[331467340,1720427869281,-2399.28,0.00034099,38]
[331467341,1720427869330,-2861.76,0.00034099,42]
[331467342,1720427869383,-2399.28,0.00034099,39]
[331467343,1720427869432,-2861.76,0.00034099,43]
[331467344,1720427869479,-771.26,0.00034099,39]
[331467345,1720427869527,-2861.76,0.00034099,44]
[331467346,1720427869574,-771.26,0.00034099,40]
[331467347,1720427869621,-2399.28,0.00034099,40]
[331467348,1720427869670,-2861.76,0.00034099,45]
[331467349,1720427869716,-771.26,0.00034099,41]
[331467350,1720427869759,-2399.28,0.00034099,41]
[331467351,1720427869805,-2861.76,0.00034099,46]
[331467353,1720427869851,-771.26,0.00034099,42]
[331467354,1720427869897,-2399.28,0.00034099,42]
[331467355,1720427869954,-2861.76,0.00034099,47]
[331467356,1720427870000,-2399.28,0.00034099,43]
[331467357,1720427870047,-771.26,0.00034099,43]
[331467358,1720427870093,-2861.76,0.00034099,48]
[331467359,1720427870139,-2399.28,0.00034099,44]
[331467360,1720427870185,-771.26,0.00034099,44]
[331467361,1720427870233,-500.0,0.00034099,30]
[331467362,1720427870278,-2861.76,0.00034099,49]
[331467363,1720427870325,-2399.28,0.00034099,45]
[331467364,1720427870372,-771.26,0.00034099,45]
[331467365,1720427870419,-2861.76,0.00034099,50]
[331467366,1720427870463,-2399.28,0.00034099,46]
[331467367,1720427870505,-2861.76,0.00034099,51]
[331467368,1720427870548,-771.26,0.00034099,46]
[331467369,1720427870589,-500.0,0.00034099,31]
[331467370,1720427870632,-2399.28,0.00034099,47]
[331467371,1720427870679,-771.26,0.00034099,47]
[331467372,1720427870721,-500.0,0.00034099,32]
[331467373,1720427870766,-3616.95,0.00034099,30]
[331467374,1720427870811,-2399.28,0.00034099,48]
[331467375,1720427870856,-771.26,0.00034099,48]
[331467376,1720427870904,-2861.76,0.00034099,52]
[331467377,1720427870956,-500.0,0.00034099,33]
[331467378,1720427871005,-2399.28,0.00034099,49]
[331467379,1720427871057,-3616.95,0.00034099,31]
[331467380,1720427871106,-771.26,0.00034099,49]
[331467381,1720427871155,-500.0,0.00034099,34]
[331467382,1720427871199,-2861.83373991,0.00034099,53]
[331467383,1720427871244,-3616.95,0.00034099,32]
[331467384,1720427871288,-771.26,0.00034099,50]
[331467385,1720427871535,-500.0,0.00034099,35]
[331467386,1720427871581,-2399.28,0.00034099,50]
[331467387,1720427871627,-3616.95,0.00034099,33]
[331467388,1720427871673,-771.26,0.00034099,51]
[331467389,1720427871715,-500.0,0.00034099,36]
[331467390,1720427871760,-2399.28,0.00034099,51]
[331467391,1720427871806,-3616.95,0.00034099,34]
[331467392,1720427871850,-771.26,0.00034099,52]
[331467393,1720427871895,-500.0,0.00034099,37]
[331467394,1720427871945,-500.0,0.00034099,38]
[331467395,1720427871998,-771.37675883,0.00034099,53]
[331467396,1720427872049,-2399.28,0.00034099,52]
[331467397,1720427872098,-3616.95,0.00034099,35]
[331467398,1720427872148,-500.0,0.00034099,39]
[331467399,1720427872195,-1586.98,0.00034099,30]
[331467400,1720427872241,-3616.95,0.00034099,36]
[331467401,1720427872285,-2399.50643722,0.00034099,53]
[331467402,1720427872331,-500.0,0.00034099,40]
[331467403,1720427872380,-1586.98,0.00034099,31]
[331467404,1720427872430,-500.0,0.00034099,41]
[331467405,1720427872474,-500.0,0.00034099,30]
[331467406,1720427872521,-1586.98,0.00034099,32]
[331467407,1720427872567,-3616.95,0.00034099,37]
[331467408,1720427872612,-500.0,0.00034099,42]
[331467409,1720427872659,-500.0,0.00034099,31]
[331467410,1720427872703,-1586.98,0.00034099,33]
[331467411,1720427872745,-500.0,0.00034099,43]
[331467412,1720427872791,-3616.95,0.00034099,38]
[331467413,1720427872834,-581.60962194,0.00034099,32]
[331467414,1720427872879,-1586.98,0.00034099,34]
[331467415,1720427872924,-500.0,0.00034099,44]
[331467416,1720427872967,-3616.95,0.00034099,39]
[331467417,1720427873011,-1586.98,0.00034099,35]
[331467418,1720427873052,-500.0,0.00034099,30]
[331467419,1720427873101,-3616.95,0.00034099,40]
[331467420,1720427873151,-1586.98,0.00034099,36]
[331467421,1720427873196,-605.33434725,0.00034099,31]
[331467422,1720427873242,-3616.95,0.00034099,41]
[331467423,1720427873286,-500.0,0.00034099,45]
[331467424,1720427873328,-1586.98,0.00034099,37]
[331467425,1720427873372,-3616.95,0.00034099,42]
[331467426,1720427873418,-500.0,0.00034099,46]
[331467427,1720427873459,-1586.98,0.00034099,38]
[331467428,1720427873501,-3616.95,0.00034099,43]